[Event "Late-Titled-Tuesday-Blitz-March-19-2024"]
[Site "Chess.com"]
[Date "2024.03.19"]
[Round "11"]
[White "cukricek"]
[Black "ThaBarWa"]
[Result "0-1"]
[WhiteElo "2465"]
[BlackElo "2357"]
[TimeControl "180+1"]
[EndTime "16:04:09 PDT"]
[Termination "ThaBarWa won by checkmate"]

1. g3 {[%clk 0:03:00.9]} 1... g6 {[%clk 0:02:58.9]} 2. Bg2 {[%clk 0:03:01]} 2...
Bg7 {[%clk 0:02:59.7]} 3. Nf3 {[%clk 0:03:01.6]} 3... Nf6 {[%clk 0:03:00.3]} 4.
O-O {[%clk 0:03:02.3]} 4... O-O {[%clk 0:03:01]} 5. c4 {[%clk 0:03:02.9]} 5...
d6 {[%clk 0:03:01.4]} 6. Nc3 {[%clk 0:03:03.5]} 6... Nbd7 {[%clk 0:02:56.7]} 7.
Rb1 {[%clk 0:03:03.5]} 7... c6 {[%clk 0:02:57.6]} 8. b4 {[%clk 0:03:02.3]} 8...
e5 {[%clk 0:02:56.8]} 9. d3 {[%clk 0:03:02.2]} 9... Re8 {[%clk 0:02:56]} 10. b5
{[%clk 0:03:02.6]} 10... d5 {[%clk 0:02:49]} 11. bxc6 {[%clk 0:03:01.6]} 11...
bxc6 {[%clk 0:02:49.9]} 12. cxd5 {[%clk 0:03:00.9]} 12... cxd5 {[%clk
0:02:50.8]} 13. Bg5 {[%clk 0:03:00.8]} 13... Nb6 {[%clk 0:02:48]} 14. d4 {[%clk
0:02:53.4]} 14... e4 {[%clk 0:02:43.3]} 15. Ne5 {[%clk 0:02:53.4]} 15... h6
{[%clk 0:02:43.8]} 16. Bc1 {[%clk 0:02:45.8]} 16... Ng4 {[%clk 0:02:33.5]} 17.
Nxg4 {[%clk 0:02:00.7]} 17... Bxg4 {[%clk 0:02:34.4]} 18. h3 {[%clk 0:01:47.6]}
18... Be6 {[%clk 0:02:33.8]} 19. e3 {[%clk 0:01:47.4]} 19... Qd7 {[%clk
0:02:32.8]} 20. Kh2 {[%clk 0:01:42.1]} 20... Rec8 {[%clk 0:02:31.6]} 21. Bd2
{[%clk 0:01:38.6]} 21... h5 {[%clk 0:02:31.1]} 22. h4 {[%clk 0:01:36.8]} 22...
Bf6 {[%clk 0:02:29.7]} 23. Qb3 {[%clk 0:01:29.1]} 23... Nc4 {[%clk 0:02:26.4]}
24. Rfd1 {[%clk 0:01:23.9]} 24... Nxd2 {[%clk 0:02:17.7]} 25. Rxd2 {[%clk
0:01:23.7]} 25... Bxh4 {[%clk 0:02:18.6]} 26. Na4 {[%clk 0:01:00.7]} 26... Rab8
{[%clk 0:01:58.7]} 27. Qxb8 {[%clk 0:00:58.2]} 27... Rxb8 {[%clk 0:01:59.6]} 28.
Rxb8+ {[%clk 0:00:58.1]} 28... Kg7 {[%clk 0:01:50.2]} 29. Nc5 {[%clk 0:00:58.5]}
29... Qd6 {[%clk 0:01:41.6]} 30. Rdb2 {[%clk 0:00:53.6]} 30... Be7 {[%clk
0:01:33.7]} 31. R8b7 {[%clk 0:00:46.6]} 31... h4 {[%clk 0:01:30.7]} 32. Rxa7
{[%clk 0:00:40.8]} 32... hxg3+ {[%clk 0:01:30.3]} 33. fxg3 {[%clk 0:00:41.7]}
33... Bc8 {[%clk 0:00:58.3]} 34. Ra8 {[%clk 0:00:22.3]} 34... Bh4 {[%clk
0:00:58.5]} 35. Rxc8 {[%clk 0:00:16.1]} 35... Qxg3+ {[%clk 0:00:59]} 36. Kh1
{[%clk 0:00:16.6]} 36... Qe1+ {[%clk 0:00:57.2]} 37. Kh2 {[%clk 0:00:16.9]}
37... Qxe3 {[%clk 0:00:56.4]} 38. Rb7 {[%clk 0:00:10.1]} 38... Bg3+ {[%clk
0:00:56]} 39. Kh3 {[%clk 0:00:08.5]} 39... Bf4+ {[%clk 0:00:54.6]} 40. Kg4
{[%clk 0:00:08.3]} 40... Qg3# {[%clk 0:00:54.9]} 0-1

[Event "Late-Titled-Tuesday-Blitz-March-19-2024"]
[Site "Chess.com"]
[Date "2024.03.19"]
[Round "11"]
[White "Viktor_Poddubnyi"]
[Black "dolynachess"]
[Result "1-0"]
[WhiteElo "2337"]
[BlackElo "2510"]
[TimeControl "180+1"]
[EndTime "16:04:12 PDT"]
[Termination "Viktor_Poddubnyi won on time"]

1. e4 {[%clk 0:02:59.6]} 1... c5 {[%clk 0:02:59.5]} 2. Nf3 {[%clk 0:02:59.4]}
2... d6 {[%clk 0:02:59.8]} 3. d4 {[%clk 0:02:59.6]} 3... cxd4 {[%clk 0:03:00.7]}
4. Nxd4 {[%clk 0:03:00.3]} 4... Nf6 {[%clk 0:03:01.2]} 5. Nc3 {[%clk 0:03:00.7]}
5... g6 {[%clk 0:03:01]} 6. Be3 {[%clk 0:03:00.7]} 6... Nc6 {[%clk 0:02:59]} 7.
f3 {[%clk 0:02:58.7]} 7... h5 {[%clk 0:02:58.4]} 8. Nb3 {[%clk 0:02:48.7]} 8...
Bg7 {[%clk 0:02:52.7]} 9. Qd2 {[%clk 0:02:48.3]} 9... a6 {[%clk 0:02:33.4]} 10.
O-O-O {[%clk 0:02:47.1]} 10... b5 {[%clk 0:02:27.5]} 11. Be2 {[%clk 0:02:38.3]}
11... Be6 {[%clk 0:02:16.9]} 12. h3 {[%clk 0:02:24]} 12... h4 {[%clk 0:02:00.2]}
13. Kb1 {[%clk 0:02:23.1]} 13... Qc7 {[%clk 0:01:59.4]} 14. Rhe1 {[%clk
0:02:17.1]} 14... Rb8 {[%clk 0:01:50.6]} 15. Nd4 {[%clk 0:02:10.7]} 15... Nxd4
{[%clk 0:01:42.2]} 16. Bxd4 {[%clk 0:02:09.5]} 16... b4 {[%clk 0:01:38.5]} 17.
Nd5 {[%clk 0:02:06.9]} 17... Bxd5 {[%clk 0:01:07.7]} 18. exd5 {[%clk 0:02:06.3]}
18... O-O {[%clk 0:00:58]} 19. Bxa6 {[%clk 0:01:32.2]} 19... Nxd5 {[%clk
0:00:33]} 20. Bxg7 {[%clk 0:00:48.1]} 20... Nc3+ {[%clk 0:00:32.5]} 21. Ka1
{[%clk 0:00:48.4]} 21... Kxg7 {[%clk 0:00:07.6]} 22. bxc3 {[%clk 0:00:47.2]}
22... bxc3 {[%clk 0:00:07.5]} 23. Qd4+ {[%clk 0:00:46.3]} 23... Kg8 {[%clk
0:00:07.7]} 24. Rb1 {[%clk 0:00:43.2]} 24... Qa5 {[%clk 0:00:05.7]} 25. Bc4
{[%clk 0:00:39.9]} 25... Ra8 {[%clk 0:00:02.4]} 26. Bb3 {[%clk 0:00:38.3]} 26...
Rfb8 {[%clk 0:00:01.9]} 27. Qd5 {[%clk 0:00:32.1]} 1-0

[Event "Late-Titled-Tuesday-Blitz-March-19-2024"]
[Site "Chess.com"]
[Date "2024.03.19"]
[Round "11"]
[White "andjela_djidjika"]
[Black "Szachulec75"]
[Result "0-1"]
[WhiteElo "2116"]
[BlackElo "2176"]
[TimeControl "180+1"]
[EndTime "16:04:14 PDT"]
[Termination "Szachulec75 won by checkmate"]

1. e4 {[%clk 0:02:57.6]} 1... d6 {[%clk 0:02:58.6]} 2. d4 {[%clk 0:02:56]} 2...
Nf6 {[%clk 0:02:58.6]} 3. Nc3 {[%clk 0:02:55.4]} 3... c6 {[%clk 0:02:58.5]} 4.
a4 {[%clk 0:02:53.9]} 4... a5 {[%clk 0:02:57.5]} 5. Nf3 {[%clk 0:02:51.5]} 5...
Bg4 {[%clk 0:02:56.7]} 6. Be2 {[%clk 0:02:49]} 6... Nbd7 {[%clk 0:02:54.6]} 7.
O-O {[%clk 0:02:48.6]} 7... e5 {[%clk 0:02:54.1]} 8. dxe5 {[%clk 0:02:43.9]}
8... dxe5 {[%clk 0:02:53.6]} 9. h3 {[%clk 0:02:42]} 9... Bh5 {[%clk 0:02:51.3]}
10. Bg5 {[%clk 0:02:40.9]} 10... Be7 {[%clk 0:02:50.5]} 11. Qd2 {[%clk
0:02:26.5]} 11... O-O {[%clk 0:02:47]} 12. Rfd1 {[%clk 0:02:25.3]} 12... Qc7
{[%clk 0:02:37]} 13. Qe3 {[%clk 0:02:04.2]} 13... Bg6 {[%clk 0:02:16.9]} 14. Nh4
{[%clk 0:01:55.9]} 14... Bc5 {[%clk 0:02:11.2]} 15. Qg3 {[%clk 0:01:51.8]} 15...
h6 {[%clk 0:01:38]} 16. Nxg6 {[%clk 0:01:43.7]} 16... fxg6 {[%clk 0:01:35.4]}
17. Bxh6 {[%clk 0:01:34.5]} 17... gxh6 {[%clk 0:01:10.3]} 18. Qxg6+ {[%clk
0:01:33]} 18... Kh8 {[%clk 0:01:10]} 19. Qxh6+ {[%clk 0:00:47.7]} 19... Nh7
{[%clk 0:01:09]} 20. Bg4 {[%clk 0:00:45.3]} 20... Rxf2 {[%clk 0:00:47.7]} 21.
Kh1 {[%clk 0:00:39.3]} 21... Nf6 {[%clk 0:00:43.3]} 22. Bf5 {[%clk 0:00:34.4]}
22... Rg8 {[%clk 0:00:34.4]} 23. Rd7 {[%clk 0:00:31.4]} 23... Qxd7 {[%clk
0:00:27.6]} 24. Bxd7 {[%clk 0:00:31.1]} 24... Rgxg2 {[%clk 0:00:28.5]} 25. Bf5
{[%clk 0:00:13.4]} 25... Rh2+ {[%clk 0:00:26.9]} 26. Kg1 {[%clk 0:00:13.4]}
26... Rfg2+ {[%clk 0:00:27.8]} 27. Kf1 {[%clk 0:00:13.3]} 27... Rxc2 {[%clk
0:00:25.7]} 28. Rd1 {[%clk 0:00:08.2]} 28... Rh1# {[%clk 0:00:25.1]} 0-1

[Event "Late-Titled-Tuesday-Blitz-March-19-2024"]
[Site "Chess.com"]
[Date "2024.03.19"]
[Round "11"]
[White "1g60-1"]
[Black "ritanovikova"]
[Result "1-0"]
[WhiteElo "2368"]
[BlackElo "2211"]
[TimeControl "180+1"]
[EndTime "16:04:17 PDT"]
[Termination "1g60-1 won on time"]

1. e4 {[%clk 0:03:00.9]} 1... d5 {[%clk 0:02:59.4]} 2. exd5 {[%clk 0:03:00.7]}
2... Qxd5 {[%clk 0:03:00.3]} 3. Nc3 {[%clk 0:03:01.6]} 3... Qd6 {[%clk
0:03:00.4]} 4. Nf3 {[%clk 0:03:02]} 4... Nf6 {[%clk 0:03:01]} 5. d4 {[%clk
0:03:02.1]} 5... c6 {[%clk 0:03:01.4]} 6. Bc4 {[%clk 0:03:02]} 6... Bf5 {[%clk
0:03:00.2]} 7. O-O {[%clk 0:03:00.8]} 7... e6 {[%clk 0:03:00.3]} 8. Ne5 {[%clk
0:02:59.2]} 8... Nbd7 {[%clk 0:03:00.1]} 9. Bf4 {[%clk 0:02:59.2]} 9... Nxe5
{[%clk 0:02:59.4]} 10. Bxe5 {[%clk 0:02:51.3]} 10... Qd8 {[%clk 0:02:57.9]} 11.
Bd3 {[%clk 0:02:47.1]} 11... Bxd3 {[%clk 0:02:56.8]} 12. Qxd3 {[%clk 0:02:46.9]}
12... Bd6 {[%clk 0:02:56.5]} 13. Qg3 {[%clk 0:02:42.9]} 13... Bxe5 {[%clk
0:02:37]} 14. dxe5 {[%clk 0:02:37.8]} 14... Nh5 {[%clk 0:02:27.5]} 15. Qf3
{[%clk 0:02:11.5]} 15... Qg5 {[%clk 0:02:10.4]} 16. Rfe1 {[%clk 0:01:45.8]}
16... O-O {[%clk 0:01:42.2]} 17. Ne4 {[%clk 0:01:40.6]} 17... Qg6 {[%clk
0:01:25.3]} 18. Nd6 {[%clk 0:01:39.2]} 18... Rab8 {[%clk 0:01:11]} 19. c4 {[%clk
0:01:34.6]} 19... f6 {[%clk 0:00:54.2]} 20. Qe3 {[%clk 0:01:28.5]} 20... fxe5
{[%clk 0:00:50.1]} 21. Qxe5 {[%clk 0:01:27.4]} 21... Nf4 {[%clk 0:00:31.9]} 22.
g3 {[%clk 0:01:25]} 22... Nh3+ {[%clk 0:00:20.7]} 23. Kh1 {[%clk 0:01:07]} 23...
Nxf2+ {[%clk 0:00:20.3]} 24. Kg2 {[%clk 0:01:07.2]} 24... Rf6 {[%clk 0:00:11.4]}
25. Ne4 {[%clk 0:00:37.5]} 25... Nxe4 {[%clk 0:00:09.4]} 26. Qxb8+ {[%clk
0:00:37.3]} 26... Rf8 {[%clk 0:00:08.8]} 27. Qe5 {[%clk 0:00:31.6]} 27... Rf2+
{[%clk 0:00:08.9]} 28. Kg1 {[%clk 0:00:31.6]} 1-0

[Event "Late-Titled-Tuesday-Blitz-March-19-2024"]
[Site "Chess.com"]
[Date "2024.03.19"]
[Round "11"]
[White "thesupera12"]
[Black "teresin05"]
[Result "0-1"]
[WhiteElo "2435"]
[BlackElo "2280"]
[TimeControl "180+1"]
[EndTime "16:04:20 PDT"]
[Termination "teresin05 won by resignation"]

1. d4 {[%clk 0:02:51.6]} 1... d5 {[%clk 0:02:57.8]} 2. Bg5 {[%clk 0:02:51.3]}
2... Nf6 {[%clk 0:02:56]} 3. Bxf6 {[%clk 0:02:51]} 3... exf6 {[%clk 0:02:56.9]}
4. e3 {[%clk 0:02:51.7]} 4... Bd6 {[%clk 0:02:56.7]} 5. c4 {[%clk 0:02:52.2]}
5... Kd7 {[%clk 0:02:56.4]} 6. cxd5 {[%clk 0:02:53.1]} 6... Re8 {[%clk 0:02:54]}
7. Nc3 {[%clk 0:02:53.5]} 7... Ke7 {[%clk 0:02:54.4]} 8. g3 {[%clk 0:02:53.7]}
8... Kf8 {[%clk 0:02:55.1]} 9. Bg2 {[%clk 0:02:54.4]} 9... Kg8 {[%clk
0:02:55.7]} 10. Nge2 {[%clk 0:02:55]} 10... Bg4 {[%clk 0:02:52.9]} 11. O-O
{[%clk 0:02:54.7]} 11... Nd7 {[%clk 0:02:50.8]} 12. Qc2 {[%clk 0:02:54.9]} 12...
Nb6 {[%clk 0:02:50.4]} 13. Rac1 {[%clk 0:02:55.2]} 13... Qd7 {[%clk 0:02:47]}
14. Rfe1 {[%clk 0:02:54.9]} 14... Rad8 {[%clk 0:02:47.6]} 15. Ne4 {[%clk
0:02:52.6]} 15... Nxd5 {[%clk 0:02:41.4]} 16. Nxd6 {[%clk 0:02:50.7]} 16... Qxd6
{[%clk 0:02:41.6]} 17. Bxd5 {[%clk 0:02:50.4]} 17... Qxd5 {[%clk 0:02:42.4]} 18.
Qxc7 {[%clk 0:02:50.5]} 18... Rc8 {[%clk 0:02:32.3]} 19. Nf4 {[%clk 0:02:47.8]}
19... Qf3 {[%clk 0:02:00.5]} 20. Qd6 {[%clk 0:02:45.6]} 20... g5 {[%clk
0:01:55.9]} 21. Nd5 {[%clk 0:02:28]} 21... Bh3 {[%clk 0:01:44.7]} 22. Nxf6+
{[%clk 0:02:26.4]} 22... Kh8 {[%clk 0:01:43.4]} 23. Qd5 {[%clk 0:02:22.9]} 23...
Qxf6 {[%clk 0:01:42.4]} 24. Qxb7 {[%clk 0:02:21.5]} 24... Rb8 {[%clk 0:01:36.6]}
25. Qc6 {[%clk 0:02:11.9]} 25... Qxc6 {[%clk 0:01:33.3]} 26. Rxc6 {[%clk
0:02:12.8]} 26... Rxb2 {[%clk 0:01:33.5]} 27. Rc7 {[%clk 0:02:12]} 27... Rxa2
{[%clk 0:01:25.5]} 28. Rxf7 {[%clk 0:02:11.9]} 28... Kg8 {[%clk 0:01:22.1]} 29.
Rc7 {[%clk 0:02:10.9]} 29... a5 {[%clk 0:01:17.5]} 30. d5 {[%clk 0:02:11.1]}
30... Re5 {[%clk 0:01:09.9]} 31. e4 {[%clk 0:02:10.2]} 31... Rxe4 {[%clk
0:01:09.2]} 32. Rec1 {[%clk 0:02:04.1]} 32... Rd4 {[%clk 0:01:03.7]} 33. Rb1
{[%clk 0:01:58.5]} 33... Rb2 {[%clk 0:00:55.8]} 34. Re1 {[%clk 0:01:55.7]} 34...
Re2 {[%clk 0:00:42.4]} 35. Rb1 {[%clk 0:01:54.3]} 35... Re8 {[%clk 0:00:39]} 36.
d6 {[%clk 0:01:48.2]} 36... Rxd6 {[%clk 0:00:37.2]} 37. Rc5 {[%clk 0:01:48.9]}
37... Red8 {[%clk 0:00:29.4]} 38. Rxg5+ {[%clk 0:01:49.3]} 38... Kf7 {[%clk
0:00:25.1]} 39. f3 {[%clk 0:01:49.3]} 39... Rd1+ {[%clk 0:00:24.5]} 40. Rxd1
{[%clk 0:01:49.9]} 40... Rxd1+ {[%clk 0:00:24.9]} 41. Kf2 {[%clk 0:01:50.8]}
41... Rd2+ {[%clk 0:00:19.9]} 42. Ke3 {[%clk 0:01:50.7]} 42... Ra2 {[%clk
0:00:13.1]} 43. Rh5 {[%clk 0:01:50.6]} 43... Be6 {[%clk 0:00:12.2]} 44. Rxh7+
{[%clk 0:01:50.2]} 44... Kf6 {[%clk 0:00:12.7]} 45. Ra7 {[%clk 0:01:51]} 45...
a4 {[%clk 0:00:12.7]} 46. Kf4 {[%clk 0:01:51.5]} 46... a3 {[%clk 0:00:10.9]} 47.
g4 {[%clk 0:01:52]} 47... Ra1 {[%clk 0:00:10.9]} 48. h4 {[%clk 0:01:48.8]} 48...
a2 {[%clk 0:00:11.1]} 49. h5 {[%clk 0:01:49.1]} 49... Rg1 {[%clk 0:00:05.4]} 50.
h6 {[%clk 0:01:44.1]} 50... a1=Q {[%clk 0:00:02.9]} 51. g5+ {[%clk 0:01:44.3]}
51... Kg6 {[%clk 0:00:02.5]} 52. Rxa1 {[%clk 0:01:41]} 52... Rxa1 {[%clk
0:00:03.4]} 53. Ke5 {[%clk 0:01:41.2]} 53... Bf5 {[%clk 0:00:03]} 54. f4 {[%clk
0:01:41.5]} 54... Ra5+ {[%clk 0:00:03.2]} 55. Kd4 {[%clk 0:01:41.7]} 55... Ra4+
{[%clk 0:00:03.5]} 56. Ke3 {[%clk 0:01:42]} 56... Re4+ {[%clk 0:00:04]} 57. Kf3
{[%clk 0:01:42.9]} 57... Rb4 {[%clk 0:00:03.3]} 58. Kg3 {[%clk 0:01:43.8]} 58...
Be6 {[%clk 0:00:03.4]} 59. Kf2 {[%clk 0:01:44.7]} 59... Bd5 {[%clk 0:00:04.1]}
60. Ke2 {[%clk 0:01:44.4]} 60... Bg8 {[%clk 0:00:04.2]} 61. Ke3 {[%clk
0:01:44.7]} 61... Kf5 {[%clk 0:00:04.8]} 62. h7 {[%clk 0:01:44.4]} 62... Bxh7
{[%clk 0:00:05.1]} 63. Kd3 {[%clk 0:01:44.3]} 63... Rxf4 {[%clk 0:00:05.4]} 64.
g6 {[%clk 0:01:45.2]} 64... Bxg6 {[%clk 0:00:05.4]} 0-1

[Event "Late-Titled-Tuesday-Blitz-March-19-2024"]
[Site "Chess.com"]
[Date "2024.03.19"]
[Round "11"]
[White "MusicCityMaster"]
[Black "BebeBonito2022"]
[Result "1-0"]
[WhiteElo "2464"]
[BlackElo "2304"]
[TimeControl "180+1"]
[EndTime "16:04:21 PDT"]
[Termination "MusicCityMaster won by resignation"]

1. e4 {[%clk 0:02:06.9]} 1... e5 {[%clk 0:03:00]} 2. Nf3 {[%clk 0:02:03.9]} 2...
Nc6 {[%clk 0:03:00.1]} 3. Bb5 {[%clk 0:02:04.4]} 3... f5 {[%clk 0:02:59.8]} 4.
d3 {[%clk 0:01:58.6]} 4... fxe4 {[%clk 0:03:00]} 5. dxe4 {[%clk 0:01:58.7]} 5...
Nf6 {[%clk 0:03:00.3]} 6. O-O {[%clk 0:01:57.8]} 6... Bc5 {[%clk 0:03:00.3]} 7.
Bg5 {[%clk 0:01:53]} 7... d6 {[%clk 0:02:59.4]} 8. Nc3 {[%clk 0:01:47.5]} 8...
O-O {[%clk 0:02:59.4]} 9. Nd5 {[%clk 0:01:44.6]} 9... Kh8 {[%clk 0:02:59.7]} 10.
Nh4 {[%clk 0:01:40.8]} 10... Be6 {[%clk 0:02:52.7]} 11. Bxf6 {[%clk 0:01:32.3]}
11... gxf6 {[%clk 0:02:52.9]} 12. Qh5 {[%clk 0:01:32.4]} 12... Rg8 {[%clk
0:02:26.4]} 13. c3 {[%clk 0:01:17.5]} 13... Rg5 {[%clk 0:01:35]} 14. Qh6 {[%clk
0:01:14.1]} 14... Qf8 {[%clk 0:01:33.3]} 15. Qxf8+ {[%clk 0:01:06.3]} 15... Rxf8
{[%clk 0:01:33]} 16. Nxc7 {[%clk 0:01:06.6]} 16... Bc8 {[%clk 0:00:58.3]} 17.
Bc4 {[%clk 0:01:01.9]} 17... Rg4 {[%clk 0:00:54.4]} 18. g3 {[%clk 0:00:52.5]}
18... Rxe4 {[%clk 0:00:49]} 19. Be6 {[%clk 0:00:47.1]} 19... Re2 {[%clk
0:00:27.7]} 20. b4 {[%clk 0:00:33.9]} 20... Bb6 {[%clk 0:00:23.3]} 21. Bxc8
{[%clk 0:00:34.1]} 21... Rxc8 {[%clk 0:00:20.6]} 22. Nd5 {[%clk 0:00:33.4]}
22... Bd8 {[%clk 0:00:15.1]} 23. Nf5 {[%clk 0:00:31.8]} 23... a5 {[%clk
0:00:12.2]} 24. a3 {[%clk 0:00:30]} 24... Rd2 {[%clk 0:00:09.4]} 25. Rfd1 {[%clk
0:00:26.9]} 25... Rxd1+ {[%clk 0:00:09.7]} 26. Rxd1 {[%clk 0:00:27.5]} 26...
axb4 {[%clk 0:00:09.1]} 27. axb4 {[%clk 0:00:27.2]} 27... Na7 {[%clk 0:00:07.2]}
28. Nxd6 {[%clk 0:00:25.7]} 28... Rc6 {[%clk 0:00:07.6]} 29. Nf7+ {[%clk
0:00:25.6]} 29... Kg7 {[%clk 0:00:07.8]} 30. Nxd8 {[%clk 0:00:26.5]} 30... Rd6
{[%clk 0:00:08.5]} 31. Nxb7 {[%clk 0:00:25.9]} 31... Rd7 {[%clk 0:00:08.9]} 32.
Nc5 {[%clk 0:00:26.1]} 1-0

[Event "Late-Titled-Tuesday-Blitz-March-19-2024"]
[Site "Chess.com"]
[Date "2024.03.19"]
[Round "11"]
[White "ozates"]
[Black "KuzubovYuriy"]
[Result "0-1"]
[WhiteElo "2597"]
[BlackElo "2907"]
[TimeControl "180+1"]
[EndTime "16:04:26 PDT"]
[Termination "KuzubovYuriy won on time"]

1. e4 {[%clk 0:03:00.9]} 1... g6 {[%clk 0:03:00.9]} 2. d4 {[%clk 0:03:00.2]}
2... Bg7 {[%clk 0:03:00.9]} 3. Nc3 {[%clk 0:03:00.9]} 3... a6 {[%clk 0:03:00.5]}
4. f4 {[%clk 0:03:00.5]} 4... b5 {[%clk 0:03:00.5]} 5. Nf3 {[%clk 0:03:01]} 5...
b4 {[%clk 0:03:00.3]} 6. Nd5 {[%clk 0:02:56.9]} 6... Bb7 {[%clk 0:03:00.8]} 7.
c4 {[%clk 0:02:39.8]} 7... e6 {[%clk 0:02:44.7]} 8. Nxb4 {[%clk 0:02:37.8]} 8...
Bxe4 {[%clk 0:02:45.3]} 9. Bd3 {[%clk 0:02:36.9]} 9... Bb7 {[%clk 0:02:40.6]}
10. Be3 {[%clk 0:02:36.8]} 10... Ne7 {[%clk 0:02:38.8]} 11. O-O {[%clk
0:02:36.5]} 11... a5 {[%clk 0:02:31]} 12. Nc2 {[%clk 0:02:36.3]} 12... Na6
{[%clk 0:02:28.2]} 13. Qd2 {[%clk 0:02:29.1]} 13... a4 {[%clk 0:02:25.6]} 14.
Rae1 {[%clk 0:02:28.2]} 14... O-O {[%clk 0:02:17]} 15. Qf2 {[%clk 0:01:59.5]}
15... Rb8 {[%clk 0:02:13.2]} 16. Rb1 {[%clk 0:01:51.5]} 16... d6 {[%clk
0:02:11.9]} 17. Nd2 {[%clk 0:01:45.4]} 17... c5 {[%clk 0:02:10.6]} 18. a3 {[%clk
0:01:37.4]} 18... Qc7 {[%clk 0:02:07.6]} 19. Ne4 {[%clk 0:01:35.4]} 19... Bxe4
{[%clk 0:02:04]} 20. Bxe4 {[%clk 0:01:35.7]} 20... Rb3 {[%clk 0:02:04.7]} 21.
Kh1 {[%clk 0:01:25.8]} 21... Rfb8 {[%clk 0:02:03.3]} 22. Ne1 {[%clk 0:01:03.9]}
22... cxd4 {[%clk 0:01:51]} 23. Bxd4 {[%clk 0:01:03.6]} 23... Nc5 {[%clk
0:01:46.4]} 24. Bc2 {[%clk 0:01:02]} 24... Bxd4 {[%clk 0:01:41.4]} 25. Qxd4
{[%clk 0:00:58.9]} 25... Nc6 {[%clk 0:01:42]} 26. Qf6 {[%clk 0:00:48.5]} 26...
Nd7 {[%clk 0:01:37.9]} 27. Qh4 {[%clk 0:00:42.9]} 27... Rxb2 {[%clk 0:01:37.4]}
28. Rxb2 {[%clk 0:00:42.4]} 28... Rxb2 {[%clk 0:01:38.3]} 29. f5 {[%clk
0:00:43.1]} 29... exf5 {[%clk 0:01:33]} 30. Bxf5 {[%clk 0:00:43.8]} 30... gxf5
{[%clk 0:01:29]} 31. Nd3 {[%clk 0:00:23.9]} 31... Ra2 {[%clk 0:01:15.7]} 32.
Qg5+ {[%clk 0:00:20.6]} 32... Kh8 {[%clk 0:01:11.7]} 33. Nf4 {[%clk 0:00:18.5]}
33... Qd8 {[%clk 0:01:01.7]} 34. Qxf5 {[%clk 0:00:18]} 34... Nce5 {[%clk
0:01:01.7]} 35. Nd5 {[%clk 0:00:09.9]} 35... Qh4 {[%clk 0:00:58.5]} 36. c5
{[%clk 0:00:06.4]} 36... dxc5 {[%clk 0:00:52.4]} 37. Nf4 {[%clk 0:00:02.2]}
37... Qg4 {[%clk 0:00:50.1]} 38. Qe4 {[%clk 0:00:01.3]} 38... Rd2 {[%clk
0:00:48.4]} 39. h3 {[%clk 0:00:01.6]} 39... Qg5 {[%clk 0:00:46.7]} 40. Qa8+
{[%clk 0:00:01.2]} 40... Kg7 {[%clk 0:00:46.5]} 0-1

[Event "Late-Titled-Tuesday-Blitz-March-19-2024"]
[Site "Chess.com"]
[Date "2024.03.19"]
[Round "11"]
[White "Payyappat"]
[Black "SoltaniciR"]
[Result "0-1"]
[WhiteElo "2523"]
[BlackElo "2662"]
[TimeControl "180+1"]
[EndTime "16:04:27 PDT"]
[Termination "SoltaniciR won by resignation"]

1. e4 {[%clk 0:02:59.5]} 1... c5 {[%clk 0:02:59.5]} 2. Nf3 {[%clk 0:02:58.8]}
2... d6 {[%clk 0:02:59.3]} 3. d4 {[%clk 0:02:59.7]} 3... cxd4 {[%clk 0:02:59.1]}
4. Nxd4 {[%clk 0:03:00.6]} 4... Nf6 {[%clk 0:02:59.2]} 5. Nc3 {[%clk 0:03:01.5]}
5... a6 {[%clk 0:02:59.3]} 6. h4 {[%clk 0:03:00.9]} 6... e5 {[%clk 0:02:55.7]}
7. Nb3 {[%clk 0:02:58.6]} 7... Be6 {[%clk 0:02:46.4]} 8. f4 {[%clk 0:02:57.2]}
8... exf4 {[%clk 0:02:42.7]} 9. Bxf4 {[%clk 0:02:58.1]} 9... Nc6 {[%clk
0:02:42.9]} 10. Qd2 {[%clk 0:02:56.8]} 10... d5 {[%clk 0:02:38.6]} 11. O-O-O
{[%clk 0:02:55]} 11... Bb4 {[%clk 0:02:31.4]} 12. Qe3 {[%clk 0:02:51.3]} 12...
Bxc3 {[%clk 0:02:20.5]} 13. Qxc3 {[%clk 0:02:49]} 13... O-O {[%clk 0:02:18.3]}
14. e5 {[%clk 0:02:35.7]} 14... Ne4 {[%clk 0:02:15]} 15. Qf3 {[%clk 0:02:32.3]}
15... Qc7 {[%clk 0:01:53.5]} 16. Bd3 {[%clk 0:02:27.9]} 16... Nxe5 {[%clk
0:01:49.5]} 17. Bxe5 {[%clk 0:02:18.2]} 17... Qxe5 {[%clk 0:01:50.4]} 18. Bxe4
{[%clk 0:02:05.8]} 18... dxe4 {[%clk 0:01:48.9]} 19. Qe3 {[%clk 0:02:05.1]}
19... Bxb3 {[%clk 0:01:37.9]} 20. axb3 {[%clk 0:02:03.8]} 20... Rfd8 {[%clk
0:01:32.9]} 21. Rde1 {[%clk 0:01:57.4]} 21... f5 {[%clk 0:01:32.4]} 22. Rhf1
{[%clk 0:01:55.1]} 22... Rd5 {[%clk 0:01:18.1]} 23. Rf4 {[%clk 0:00:55.7]} 23...
Rad8 {[%clk 0:01:13.3]} 24. g4 {[%clk 0:00:51.9]} 24... Qd6 {[%clk 0:01:10.9]}
25. Rff1 {[%clk 0:00:45.5]} 25... fxg4 {[%clk 0:00:37.1]} 26. Qxe4 {[%clk
0:00:27.5]} 26... h5 {[%clk 0:00:37.6]} 27. Qc4 {[%clk 0:00:17]} 27... b5 {[%clk
0:00:37.1]} 28. Qe4 {[%clk 0:00:16.1]} 28... a5 {[%clk 0:00:35.8]} 29. Qe6+
{[%clk 0:00:15.8]} 29... Qxe6 {[%clk 0:00:35.2]} 30. Rxe6 {[%clk 0:00:16.7]}
30... R8d7 {[%clk 0:00:30.8]} 31. c3 {[%clk 0:00:16.8]} 31... Rd2 {[%clk
0:00:26.2]} 32. Ra6 {[%clk 0:00:16.6]} 32... Rh2 {[%clk 0:00:25.1]} 33. Rxa5
{[%clk 0:00:16.7]} 33... g3 {[%clk 0:00:25.3]} 34. Rxb5 {[%clk 0:00:16.2]} 34...
g2 {[%clk 0:00:25.4]} 35. Re1 {[%clk 0:00:15.2]} 35... Rh1 {[%clk 0:00:23.9]}
36. Re5 {[%clk 0:00:14]} 36... g1=Q {[%clk 0:00:23.7]} 37. Rxg1 {[%clk
0:00:14.2]} 37... Rxg1+ {[%clk 0:00:24.2]} 0-1